fUST/lending_fUST_20250211
["ID","MTS","AMOUNT","RATE_DAILY","PERIOD"]
[352650937,1739217068150,-522.33,0.0001315,2]
[352650939,1739217068159,-697.04,0.0001315,2]
[352650941,1739217068168,-1338.64,0.0001315,2]
[352650943,1739217068178,-151.0,0.0001315,2]
[352650945,1739217068188,-1444.41,0.0001315,2]
[352650947,1739217068198,-228.06381,0.0001315,2]
[352650949,1739217068207,-228.06381,0.0001315,2]
[352650951,1739217068217,-993.38,0.0001315,2]
[352650952,1739217068227,-151.0,0.0001315,2]
[352650954,1739217068237,-230.522736,0.0001315,2]
[352650957,1739217068249,-1923.93,0.0001315,2]
[352650959,1739217068259,-816.51,0.0001315,2]
[352650961,1739217068268,-2855.64,0.0001315,2]
[352650963,1739217068278,-852.74,0.0001315,2]
[352650965,1739217068288,-2016.55,0.0001315,2]
[352650967,1739217068298,-3619.33,0.0001315,2]
[352650969,1739217068308,-3892.95,0.0001315,2]
[352650971,1739217068317,-500.0,0.0001315,2]
[352650973,1739217068327,-1133.68,0.0001315,2]
[352650975,1739217068336,-2543.96,0.0001315,2]
[352650977,1739217068346,-1052.65,0.0001315,2]
[352650979,1739217068356,-500.0,0.0001315,2]
[352650981,1739217068365,-512.12,0.0001315,2]
[352650983,1739217068375,-1803.17,0.0001315,2]
[352650985,1739217068384,-500.0,0.0001315,2]
[352650987,1739217068393,-1323.61,0.0001315,2]
[352650989,1739217068403,-11584.87,0.0001315,2]
[352650991,1739217068413,-860.92,0.0001315,2]
[352650993,1739217068422,-4800.77,0.0001315,2]
[352650995,1739217068432,-500.0,0.0001315,2]
[352650997,1739217068442,-585.45,0.0001315,2]
[352650999,1739217068452,-500.0,0.0001315,2]
[352651001,1739217068462,-916.7,0.0001315,2]
[352651003,1739217068471,-29101.39,0.0001315,2]
[352651005,1739217068481,-1273.32,0.0001315,2]
[352651007,1739217068491,-1025.97,0.0001315,2]
[352651009,1739217068500,-659.0357,0.0001315,2]
[352651011,1739217068509,-164.966345,0.0001315,2]
[352651012,1739217068520,-659.0357,0.0001315,2]
[352651014,1739217068531,-1916.6,0.0001315,2]
[352651016,1739217068541,-164.966345,0.0001315,2]
[352651018,1739217068554,-1515.05,0.0001315,2]
[352651020,1739217068566,-338.13,0.0001315,2]
[352651022,1739217068576,-151.0,0.0001315,2]
[352651024,1739217068586,-500.0,0.0001315,2]
[352651027,1739217068597,-181.217686,0.0001315,2]
[352651029,1739217068608,-1019.81,0.0001315,2]
[352651031,1739217068618,-500.0,0.0001315,2]
[352651033,1739217068628,-501.45,0.0001315,2]
[352651044,1739217068728,-500.0,0.0001315,2]
[352651046,1739217068739,-500.0,0.0001315,2]
[352651048,1739217068749,-14265.64,0.0001315,2]
[352651050,1739217068759,-501.51,0.0001315,2]
[352651052,1739217068770,-500.0,0.0001315,2]
[352651054,1739217068781,-621.7,0.0001315,2]
[352651056,1739217068791,-3666.21,0.0001315,2]
[352651059,1739217068802,-1588.62,0.0001315,2]
[352651061,1739217068812,-778.17,0.0001315,2]
[352651063,1739217068823,-1513.57,0.0001315,2]
[352651065,1739217068834,-537.86,0.0001315,2]
[352651067,1739217068845,-3318.52,0.0001315,2]
[352651069,1739217068856,-8633.74,0.0001315,2]
[352651071,1739217068866,-1563.78,0.0001315,2]
[352651073,1739217068876,-663.02,0.0001315,2]
[352651075,1739217068889,-540.59,0.0001315,2]
[352651077,1739217068899,-220.091735,0.0001315,2]
[352651079,1739217068908,-1721.85,0.0001315,2]
[352651081,1739217068919,-500.0,0.0001315,2]
[352651083,1739217068929,-1093.42,0.0001315,2]
[352651085,1739217068939,-220.091735,0.0001315,2]
[352651087,1739217068948,-732.73,0.0001315,2]
[352651089,1739217068958,-517.15,0.0001315,2]
[352651091,1739217068969,-1107.21,0.0001315,2]
[352651094,1739217068979,-500.0,0.0001315,2]
[352651096,1739217068990,-3083.07,0.0001315,2]
[352651097,1739217069000,-151.0,0.00013287,2]
[352651099,1739217069011,-151.0,0.00013287,2]
[352651102,1739217069027,-151.0,0.00013287,2]
[352651104,1739217069037,-151.0,0.00013287,2]
[352651106,1739217069047,-151.0,0.00013287,2]
[352651108,1739217069057,-500.0,0.00013287,2]
[352651110,1739217069066,-151.0,0.00013287,2]
[352651112,1739217069076,-151.0,0.00013287,2]
[352651114,1739217069086,-735.03,0.00013287,2]
[352651116,1739217069096,-500.0,0.00013287,2]
[352651118,1739217069105,-500.0,0.00013287,2]
[352651120,1739217069115,-500.0,0.00013287,2]
[352651122,1739217069125,-399.696085,0.00013287,2]
[352651124,1739217069135,-399.696085,0.00013287,2]
[352651126,1739217069144,-500.0,0.00013287,2]
[352651128,1739217069154,-151.0,0.00013287,2]
[352651130,1739217069163,-654.8,0.00013287,2]
[352651132,1739217069173,-661.79,0.00013287,2]
[352651134,1739217069183,-227.9909,0.00013287,2]
[352651136,1739217069192,-227.9909,0.00013287,2]
[352651138,1739217069202,-500.0,0.00013287,2]
[352651140,1739217069211,-872.2,0.00013287,2]
[352651142,1739217069222,-500.0,0.00013287,2]
[352651144,1739217069231,-564.08,0.00013287,2]
[352651146,1739217069241,-500.0,0.00013287,2]
[352651148,1739217069251,-151.0,0.00013287,2]
[352651150,1739217069260,-746.7,0.00013287,2]
[352651153,1739217069270,-151.0,0.00013287,2]
[352651155,1739217069280,-500.0,0.00013287,2]
[352651157,1739217069290,-522.33,0.00013287,2]
[352651159,1739217069300,-697.04,0.00013287,2]
[352651161,1739217069310,-503.826543,0.00013287,2]
[352651163,1739217069319,-503.826543,0.00013287,2]
[352651165,1739217069329,-1338.64,0.00013287,2]
[352651167,1739217069339,-1444.41,0.00013287,2]
[352651169,1739217069348,-993.38,0.00013287,2]
[352651170,1739217069358,-1923.93,0.00013287,2]
[352651171,1739217069369,-816.51,0.00013287,2]
[352651172,1739217069379,-2855.64,0.00013287,2]
[352651173,1739217069389,-852.74,0.00013287,2]
[352651174,1739217069399,-2016.55,0.00013287,2]
[352651175,1739217069409,-3619.33,0.00013287,2]
[352651176,1739217069419,-3892.95,0.00013287,2]
[352651177,1739217069429,-500.0,0.00013287,2]
[352651178,1739217069439,-1133.68,0.00013287,2]
[352651179,1739217069448,-2543.96,0.00013287,2]
[352651180,1739217069458,-1052.65,0.00013287,2]
[352651181,1739217069467,-256.2,0.00013287,2]
[352651182,1739217069478,-512.12,0.00013287,2]
[352651183,1739217069487,-1803.17,0.00013287,2]
[352651184,1739217069496,-459.51229712,0.00013287,2]
[352651185,1739217069506,-1323.61,0.00013287,2]
[352651186,1739217069516,-11584.87,0.00013287,2]
[352651188,1739217069526,-860.92,0.00013287,2]
[352651190,1739217069536,-4800.77,0.00013287,2]
[352651192,1739217069546,-500.0,0.00013287,2]
[352651194,1739217069563,-585.45,0.00013287,2]
[352651196,1739217069578,-500.0,0.00013287,2]
[352651199,1739217069588,-916.7,0.00013287,2]
[352651201,1739217069599,-29101.39,0.00013287,2]
[352651203,1739217069609,-1273.32,0.00013287,2]
[352651205,1739217069619,-1025.97,0.00013287,2]
[352651207,1739217069631,-1916.6,0.00013287,2]
[352651209,1739217069641,-1515.05,0.00013287,2]
[352651211,1739217069651,-500.0,0.00013287,2]
[352651213,1739217069660,-277.34640115,0.00013287,2]
[352651214,1739217069669,-1019.81,0.00013287,2]
[352651216,1739217069679,-501.45,0.00013287,2]
[352651218,1739217069689,-500.0,0.00013287,2]
[352651220,1739217069698,-500.0,0.00013287,2]
[352651222,1739217069708,-14265.64,0.00013287,2]
[352651224,1739217069718,-501.51,0.00013287,2]
[352651226,1739217069728,-500.0,0.00013287,2]
[352651228,1739217069738,-621.7,0.00013287,2]
[352651231,1739217069749,-3666.21,0.00013287,2]
[352651232,1739217069758,-1588.62,0.00013287,2]
[352651234,1739217069769,-778.17,0.00013287,2]
[352651236,1739217069778,-1513.57,0.00013287,2]
[352651238,1739217069787,-537.86,0.00013287,2]
[352651241,1739217069799,-3318.52,0.00013287,2]
[352651243,1739217069809,-8633.74,0.00013287,2]
[352651245,1739217069820,-1563.78,0.00013287,2]
[352651247,1739217069830,-663.02,0.00013287,2]
[352651249,1739217069839,-540.59,0.00013287,2]
[352651251,1739217069849,-1721.85,0.00013287,2]
[352651253,1739217069859,-1093.42,0.00013287,2]
[352651255,1739217069868,-500.0,0.00013287,2]
[352651257,1739217069878,-732.73,0.00013287,2]
[352651259,1739217069888,-517.15,0.00013287,2]
[352651261,1739217069897,-1107.21,0.00013287,2]
[352651263,1739217069907,-500.0,0.00013287,2]
[352651265,1739217069917,-3083.07,0.00013287,2]
[352651267,1739217069927,-600.0,0.00013364,2]
[352651269,1739217069938,-354.8426056,0.0001337,2]
[352651271,1739217069947,-354.2684772,0.0001337,2]
[352651272,1739217069957,-280.04062401,0.00013388,2]
[352651274,1739217069968,-396.65,0.00013424,2]
[352651277,1739217069978,-151.0,0.00013424,2]
[352651278,1739217069988,-735.03,0.00013424,2]
[352651280,1739217069998,-500.0,0.00013424,2]
[352651282,1739217070008,-629.22,0.00013424,2]
[352651284,1739217070018,-308.194264,0.00013424,2]
[352651286,1739217070028,-308.194264,0.00013424,2]
[352651288,1739217070037,-621.64,0.00013424,2]
[352651290,1739217070047,-500.0,0.00013424,2]
[352651292,1739217070057,-654.8,0.00013424,2]
[352651294,1739217070070,-661.79,0.00013424,2]
[352651296,1739217070080,-500.0,0.00013424,2]
[352651298,1739217070089,-872.2,0.00013424,2]
[352651300,1739217070099,-500.0,0.00013424,2]
[352651302,1739217070109,-564.08,0.00013424,2]
[352651305,1739217070120,-456.31,0.00013424,2]
[352651307,1739217070131,-746.7,0.00013424,2]
[352651309,1739217070140,-500.0,0.00013424,2]
[352651311,1739217070150,-522.33,0.00013424,2]
[352651313,1739217070159,-697.04,0.00013424,2]
[352651315,1739217070168,-1338.64,0.00013424,2]
[352651316,1739217070178,-1444.41,0.00013424,2]
[352651319,1739217070187,-993.38,0.00013424,2]
[352651321,1739217070198,-1923.93,0.00013424,2]
[352651323,1739217070207,-816.51,0.00013424,2]
[352651325,1739217070222,-2855.64,0.00013424,2]
[352651327,1739217070239,-852.74,0.00013424,2]
[352651329,1739217070249,-2016.55,0.00013424,2]
[352651331,1739217070259,-3619.33,0.00013424,2]
[352651333,1739217070269,-3892.95,0.00013424,2]
[352651335,1739217070279,-500.0,0.00013424,2]
[352651337,1739217070289,-1133.68,0.00013424,2]
[352651339,1739217070298,-2543.96,0.00013424,2]
[352651341,1739217070312,-1052.65,0.00013424,2]
[352651343,1739217070322,-512.12,0.00013424,2]
[352651345,1739217070332,-1803.17,0.00013424,2]
[352651347,1739217070341,-1323.61,0.00013424,2]
[352651349,1739217070351,-11584.87,0.00013424,2]
[352651351,1739217070362,-860.92,0.00013424,2]
[352651353,1739217070371,-4800.77,0.00013424,2]
[352651355,1739217070381,-375.89,0.00013424,2]
[352651357,1739217070391,-585.45,0.00013424,2]
[352651367,1739217070400,-500.0,0.00013424,2]
[352651369,1739217070492,-916.7,0.00013424,2]
[352651371,1739217070502,-29101.39,0.00013424,2]
[352651373,1739217070511,-1273.32,0.00013424,2]
[352651375,1739217070522,-1025.97,0.00013424,2]
[352651377,1739217070531,-659.0357,0.00013424,2]
[352651379,1739217070542,-164.966345,0.00013424,2]
[352651381,1739217070556,-659.0357,0.00013424,2]
[352651383,1739217070566,-1916.6,0.00013424,2]
[352651385,1739217070576,-164.966345,0.00013424,2]
[352651388,1739217070585,-1515.05,0.00013424,2]
[352651390,1739217070596,-151.0,0.00013424,2]
[352651392,1739217070606,-500.0,0.00013424,2]
[352651394,1739217070616,-1019.81,0.00013424,2]
[352651396,1739217070626,-501.45,0.00013424,2]
[352651398,1739217070636,-500.0,0.00013424,2]
[352651400,1739217070646,-500.0,0.00013424,2]
[352651402,1739217070655,-14265.64,0.00013424,2]
[352651403,1739217070664,-501.51,0.00013424,2]
[352651405,1739217070674,-500.0,0.00013424,2]
[352651408,1739217070685,-621.7,0.00013424,2]
[352651410,1739217070694,-3666.21,0.00013424,2]
[352651411,1739217070703,-1588.62,0.00013424,2]
[352651414,1739217070713,-778.17,0.00013424,2]
[352651416,1739217070723,-1513.57,0.00013424,2]
[352651418,1739217070732,-537.86,0.00013424,2]
[352651420,1739217070742,-3318.52,0.00013424,2]
[352651422,1739217070752,-8633.74,0.00013424,2]
[352651423,1739217070762,-1563.78,0.00013424,2]
[352651425,1739217070773,-663.02,0.00013424,2]
[352651427,1739217070783,-540.59,0.00013424,2]
[352651429,1739217070793,-220.091735,0.00013424,2]
[352651431,1739217070803,-1721.85,0.00013424,2]
[352651433,1739217070814,-1093.42,0.00013424,2]
[352651435,1739217070824,-500.0,0.00013424,2]
[352651437,1739217070834,-220.091735,0.00013424,2]
[352651439,1739217070844,-732.73,0.00013424,2]
[352651441,1739217070854,-517.15,0.00013424,2]
[352651443,1739217070864,-1107.21,0.00013424,2]
[352651445,1739217070874,-500.0,0.00013424,2]
[352651447,1739217070883,-3083.07,0.00013424,2]
[352651449,1739217070893,-823.0,0.00013512,2]
[352651451,1739217070902,-6301.14976744,0.0001356,2]
[352651453,1739217070912,-285.239364,0.00013561,2]
[352651455,1739217070922,-1795.214927,0.00013561,2]
[352651457,1739217070932,-1795.214927,0.00013561,2]
[352651459,1739217070942,-735.03,0.00013561,2]
[352651461,1739217070952,-500.0,0.00013561,2]
[352651463,1739217070961,-500.0,0.00013561,2]
[352651465,1739217070972,-654.8,0.00013561,2]
[352651467,1739217070982,-661.79,0.00013561,2]
[352651470,1739217070992,-500.0,0.00013561,2]
[352651472,1739217071002,-872.2,0.00013561,2]
[352651473,1739217071013,-500.0,0.00013561,2]
[352651476,1739217071024,-564.08,0.00013561,2]
[352651478,1739217071034,-746.7,0.00013561,2]
[352651480,1739217071044,-307.97099139,0.00013561,2]
[352651482,1739217071055,-522.33,0.00013561,2]
[352651484,1739217071065,-697.04,0.00013561,2]
[352651486,1739217071075,-1338.64,0.00013561,2]
[352651488,1739217071084,-151.0,0.00013561,2]
[352651490,1739217071094,-1444.41,0.00013561,2]
[352651492,1739217071104,-228.06381,0.00013561,2]
[352651494,1739217071113,-228.06381,0.00013561,2]
[352651496,1739217071123,-993.38,0.00013561,2]
[352651497,1739217071133,-151.0,0.00013561,2]
[352651499,1739217071142,-1923.93,0.00013561,2]
[352651502,1739217071153,-816.51,0.00013561,2]
[352651503,1739217071163,-2855.64,0.00013561,2]
[352651506,1739217071175,-852.74,0.00013561,2]
[352651508,1739217071185,-2016.55,0.00013561,2]
[352651510,1739217071195,-3619.33,0.00013561,2]
[352651512,1739217071205,-3892.95,0.00013561,2]
[352651514,1739217071216,-500.0,0.00013561,2]
[352651516,1739217071227,-1133.68,0.00013561,2]
[352651518,1739217071236,-2543.96,0.00013561,2]
[352651521,1739217071254,-1052.65,0.00013561,2]
[352651523,1739217071271,-512.12,0.00013561,2]
[352651526,1739217071287,-1803.17,0.00013561,2]
[352651529,1739217071306,-1323.61,0.00013561,2]
[352651532,1739217071322,-11584.87,0.00013561,2]
[352651535,1739217071339,-860.92,0.00013561,2]
[352651537,1739217071354,-4800.77,0.00013561,2]
[352651540,1739217071371,-585.45,0.00013561,2]
[352651542,1739217071385,-500.0,0.00013561,2]
[352651545,1739217071401,-916.7,0.00013561,2]
[352651548,1739217071418,-29101.39,0.00013561,2]
[352651551,1739217071436,-1273.32,0.00013561,2]
[352651554,1739217071455,-1025.97,0.00013561,2]
[352651556,1739217071467,-1916.6,0.00013561,2]
[352651558,1739217071481,-1515.05,0.00013561,2]
[352651561,1739217071499,-406.74,0.00013561,2]
[352651563,1739217071512,-1019.81,0.00013561,2]
[352651566,1739217071529,-501.45,0.00013561,2]
[352651568,1739217071543,-500.0,0.00013561,2]
[352651571,1739217071561,-500.0,0.00013561,2]
[352651573,1739217071575,-14265.64,0.00013561,2]
[352651575,1739217071590,-501.51,0.00013561,2]
[352651578,1739217071604,-500.0,0.00013561,2]
[352651580,1739217071618,-621.7,0.00013561,2]
[352651583,1739217071643,-3666.21,0.00013561,2]
[352651585,1739217071664,-1588.62,0.00013561,2]
[352651587,1739217071683,-778.17,0.00013561,2]
[352651590,1739217071696,-1513.57,0.00013561,2]
[352651592,1739217071711,-537.86,0.00013561,2]
[352651595,1739217071725,-3318.52,0.00013561,2]
[352651597,1739217071740,-8633.74,0.00013561,2]
[352651599,1739217071753,-1563.78,0.00013561,2]
[352651602,1739217071766,-663.02,0.00013561,2]
[352651604,1739217071784,-540.59,0.00013561,2]
[352651607,1739217071798,-1721.85,0.00013561,2]
[352651609,1739217071812,-1093.42,0.00013561,2]
[352651611,1739217071825,-500.0,0.00013561,2]
[352651614,1739217071841,-732.73,0.00013561,2]
[352651617,1739217071855,-517.15,0.00013561,2]
[352651619,1739217071868,-500.0,0.00013561,2]
[352651621,1739217071882,-1107.21,0.00013561,2]
[352651624,1739217071896,-3083.07,0.00013561,2]
[352651626,1739217071910,-151.0,0.00013698,2]
[352651628,1739217071923,-151.0,0.00013698,2]
[352651631,1739217071937,-735.03,0.00013698,2]
[352651634,1739217071960,-620.1,0.00013698,2]
[352651638,1739217071990,-399.696085,0.00013698,2]
[352651641,1739217072011,-399.696085,0.00013698,2]
[352651644,1739217072030,-218.24,0.00013698,2]
[352651646,1739217072049,-151.0,0.00013698,2]
[352651649,1739217072067,-654.8,0.00013698,2]
[352651652,1739217072083,-661.79,0.00013698,2]
[352651654,1739217072098,-227.9909,0.00013698,2]
[352651657,1739217072113,-227.9909,0.00013698,2]
[352651659,1739217072127,-524.01,0.00013698,2]
[352651662,1739217072141,-872.2,0.00013698,2]
[352651664,1739217072155,-500.0,0.00013698,2]
[352651667,1739217072170,-564.08,0.00013698,2]
[352651669,1739217072184,-151.0,0.00013698,2]
[352651672,1739217072197,-746.7,0.00013698,2]
[352651674,1739217072211,-151.0,0.00013698,2]
[352651677,1739217072225,-522.33,0.00013698,2]
[352651679,1739217072238,-697.04,0.00013698,2]
[352651681,1739217072252,-503.826543,0.00013698,2]
[352651684,1739217072266,-503.826543,0.00013698,2]
[352651686,1739217072282,-1338.64,0.00013698,2]
[352651689,1739217072295,-1444.41,0.00013698,2]
[352651691,1739217072308,-993.38,0.00013698,2]
[352651693,1739217072321,-1923.93,0.00013698,2]
[352651696,1739217072336,-816.51,0.00013698,2]
[352651698,1739217072349,-2855.64,0.00013698,2]
[352651700,1739217072362,-852.74,0.00013698,2]
[352651703,1739217072376,-2016.55,0.00013698,2]
[352651705,1739217072390,-3619.33,0.00013698,2]
[352651708,1739217072403,-3892.95,0.00013698,2]
[352651710,1739217072418,-500.0,0.00013698,2]
[352651728,1739217072584,-1133.68,0.00013698,2]
[352651730,1739217072596,-2543.96,0.00013698,2]
[352651732,1739217072606,-1052.65,0.00013698,2]
[352651734,1739217072618,-512.12,0.00013698,2]
[352651736,1739217072641,-500.0,0.00013698,2]
[352651738,1739217072650,-500.0,0.00013698,2]
[352651740,1739217072660,-500.0,0.00013698,2]
[352651742,1739217072670,-500.0,0.00013698,2]
[352651743,1739217072680,-1803.17,0.00013698,2]
[352651744,1739217072690,-500.0,0.00013698,2]
[352651745,1739217072700,-500.0,0.00013698,2]
[352651746,1739217072710,-500.0,0.00013698,2]
[352651747,1739217072719,-1323.61,0.00013698,2]
[352651748,1739217072728,-11584.87,0.00013698,2]
[352651749,1739217072738,-860.92,0.00013698,2]
[352651750,1739217072749,-4800.77,0.00013698,2]
[352651751,1739217072759,-585.45,0.00013698,2]
[352651752,1739217072769,-500.0,0.00013698,2]
[352651753,1739217072782,-916.7,0.00013698,2]
[352651754,1739217072792,-29101.39,0.00013698,2]
[352651755,1739217072802,-1273.32,0.00013698,2]
[352651756,1739217072813,-1025.97,0.00013698,2]
[352651758,1739217072823,-1916.6,0.00013698,2]
[352651759,1739217072832,-1515.05,0.00013698,2]
[352651761,1739217072842,-1019.81,0.00013698,2]
[352651763,1739217072851,-501.45,0.00013698,2]
[352651765,1739217072862,-500.0,0.00013698,2]
[352651767,1739217072872,-500.0,0.00013698,2]
[352651769,1739217072882,-14265.64,0.00013698,2]
[352651771,1739217072892,-501.51,0.00013698,2]
[352651774,1739217072903,-500.0,0.00013698,2]
[352651776,1739217072914,-621.7,0.00013698,2]
[352651778,1739217072924,-3666.21,0.00013698,2]
[352651780,1739217072934,-1588.62,0.00013698,2]
[352651782,1739217072943,-778.17,0.00013698,2]
[352651784,1739217072954,-1513.57,0.00013698,2]
[352651786,1739217072964,-537.86,0.00013698,2]
[352651788,1739217072974,-3318.52,0.00013698,2]
[352651790,1739217072985,-8633.74,0.00013698,2]
[352651792,1739217072995,-1563.78,0.00013698,2]
[352651794,1739217073005,-663.02,0.00013698,2]
[352651796,1739217073015,-540.59,0.00013698,2]
[352651798,1739217073028,-1721.85,0.00013698,2]
[352651800,1739217073038,-1093.42,0.00013698,2]
[352651802,1739217073048,-183.59409197,0.00013698,2]
[352651804,1739217073058,-732.73,0.00013698,2]
[352651806,1739217073068,-517.15,0.00013698,2]
[352651809,1739217073079,-500.0,0.00013698,2]
[352651811,1739217073089,-1107.21,0.00013698,2]
[352651813,1739217073098,-3083.07,0.00013698,2]
[352651815,1739217073108,-302.48987,0.00013699,2]
[352651817,1739217073117,-159.9974759,0.00013699,2]
[352651819,1739217073127,-500.0,0.00013699,2]
[352651821,1739217073136,-500.0,0.00013699,2]
[352651823,1739217073146,-500.0,0.00013699,2]
[352651825,1739217073155,-500.0,0.00013699,2]
[352651827,1739217073165,-151.0,0.00013835,2]
[352651829,1739217073175,-151.0,0.00013835,2]
[352651831,1739217073185,-151.0,0.00013835,2]
[352651833,1739217073195,-151.0,0.00013835,2]
[352651835,1739217073204,-735.03,0.00013835,2]
[352651837,1739217073214,-308.194264,0.00013835,2]
[352651839,1739217073223,-308.194264,0.00013835,2]
[352651841,1739217073233,-654.8,0.00013835,2]
[352651843,1739217073243,-661.79,0.00013835,2]
[352651845,1739217073252,-872.2,0.00013835,2]
[352651847,1739217073262,-500.0,0.00013835,2]
[352651849,1739217073273,-564.08,0.00013835,2]
[352651851,1739217073283,-746.7,0.00013835,2]
[352651853,1739217073291,-522.33,0.00013835,2]
[352651855,1739217073301,-697.04,0.00013835,2]
[352651857,1739217073310,-1338.64,0.00013835,2]
[352651859,1739217073320,-1444.41,0.00013835,2]
[352651861,1739217073329,-993.38,0.00013835,2]
[352651862,1739217073338,-1923.93,0.00013835,2]
[352651865,1739217073348,-816.51,0.00013835,2]
[352651867,1739217073358,-2855.64,0.00013835,2]
[352651869,1739217073367,-852.74,0.00013835,2]
[352651871,1739217073377,-2016.55,0.00013835,2]
[352651873,1739217073386,-3619.33,0.00013835,2]
[352651875,1739217073395,-3892.95,0.00013835,2]
[352651877,1739217073405,-500.0,0.00013835,2]
[352651879,1739217073414,-1133.68,0.00013835,2]
[352651881,1739217073423,-2543.96,0.00013835,2]
[352651883,1739217073432,-1052.65,0.00013835,2]
[352651885,1739217073442,-512.12,0.00013835,2]
[352651887,1739217073452,-1803.17,0.00013835,2]
[352651889,1739217073461,-1323.61,0.00013835,2]
[352651891,1739217073470,-11584.87,0.00013835,2]
[352651893,1739217073479,-860.92,0.00013835,2]
[352651895,1739217073489,-4800.77,0.00013835,2]
[352651897,1739217073499,-585.45,0.00013835,2]
[352651899,1739217073509,-500.0,0.00013835,2]
[352651901,1739217073519,-916.7,0.00013835,2]
[352651903,1739217073530,-29101.39,0.00013835,2]
[352651905,1739217073540,-1273.32,0.00013835,2]
[352651907,1739217073552,-659.0357,0.00013835,2]
[352651909,1739217073563,-1025.97,0.00013835,2]
[352651911,1739217073574,-164.966345,0.00013835,2]
[352651913,1739217073584,-659.0357,0.00013835,2]
[352651915,1739217073594,-1916.6,0.00013835,2]
[352651917,1739217073604,-164.966345,0.00013835,2]
[352651919,1739217073613,-1515.05,0.00013835,2]
[352651921,1739217073623,-151.0,0.00013835,2]
[352651923,1739217073634,-1019.81,0.00013835,2]
[352651925,1739217073644,-501.45,0.00013835,2]
[352651927,1739217073655,-262.58,0.00013835,2]
[352651929,1739217073664,-500.0,0.00013835,2]
[352651931,1739217073674,-14265.64,0.00013835,2]
[352651933,1739217073684,-501.51,0.00013835,2]
[352651935,1739217073694,-500.0,0.00013835,2]
[352651937,1739217073704,-621.7,0.00013835,2]
[352651939,1739217073714,-3666.21,0.00013835,2]
[352651941,1739217073723,-1588.62,0.00013835,2]
[352651943,1739217073733,-778.17,0.00013835,2]
[352651945,1739217073743,-1513.57,0.00013835,2]
[352651948,1739217073754,-537.86,0.00013835,2]
[352651950,1739217073765,-3318.52,0.00013835,2]
[352651952,1739217073776,-8633.74,0.00013835,2]
[352651954,1739217073786,-1563.78,0.00013835,2]
[352651956,1739217073796,-663.02,0.00013835,2]
[352651958,1739217073807,-540.59,0.00013835,2]
[352651960,1739217073817,-220.091735,0.00013835,2]
[352651962,1739217073828,-1721.85,0.00013835,2]
[352651964,1739217073839,-1093.42,0.00013835,2]
[352651966,1739217073849,-220.091735,0.00013835,2]
[352651968,1739217073859,-732.73,0.00013835,2]
[352651970,1739217073870,-517.15,0.00013835,2]
[352651972,1739217073880,-386.71,0.00013835,2]
[352651975,1739217073891,-1107.21,0.00013835,2]
[352651976,1739217073900,-3083.07,0.00013835,2]
[352651978,1739217073910,-154.604472,0.00013918,2]
[352651980,1739217073920,-206.3942014,0.00013918,2]
[352651982,1739217073930,-154.5119952,0.00013918,2]
[352651984,1739217073939,-151.0,0.00013972,2]